{"text_format":"1","workbook":"xlsx","n_sheets":2,"sheets":["マクロ実行用","元"],"not_rendered":{"charts":0,"images":0,"macros":1,"external_links":0,"defined_names":3,"comments":0,"pivot_tables":0},"unopened":[],"bounds":{"document_bytes":16777216,"sheet_cells":100000,"rows_first":2000,"rows_last":500,"rows_between":2000,"halvings":0,"cell_chars":16384,"cell_head_chars":4096},"cells_cut":0,"cells_raw":0,"read":"whole","date_system":"1900"}

{"sheet":"マクロ実行用","index":0,"n_rows":6,"n_cols":9,"rows_kept":6,"cut":false,"hidden":false,"merged":[]}
[]
[]
[null,null,null,null,null,"取り込むファイル名","2022仮名生徒情報7.xlsm","←マクロの分","開いておく"]
[null,null,null,null,null,"学年",7]
[]
[null,null,null,null,null,"IDの列","H"]

{"sheet":"元","index":1,"n_rows":42,"n_cols":5,"rows_kept":42,"cut":false,"hidden":false,"merged":[]}
["UPN",null,"ID","メールアドレス","結合式"]
[null,null,null,"@gigach.ed.jp",{"$f":"C2 & D2","v":"@gigach.ed.jp"}]
[null,null,null,"@gigach.ed.jp",{"$f":"C3 & D3","v":"@gigach.ed.jp"}]
[null,null,null,"@gigach.ed.jp","@gigach.ed.jp"]
[null,null,null,"@gigach.ed.jp","@gigach.ed.jp"]
[null,null,null,"@gigach.ed.jp","@gigach.ed.jp"]
[null,null,null,"@gigach.ed.jp","@gigach.ed.jp"]
[null,null,null,"@gigach.ed.jp","@gigach.ed.jp"]
[null,null,null,"@gigach.ed.jp","@gigach.ed.jp"]
[null,null,null,"@gigach.ed.jp","@gigach.ed.jp"]
[null,null,null,"@gigach.ed.jp","@gigach.ed.jp"]
[null,null,null,"@gigach.ed.jp","@gigach.ed.jp"]
[null,null,null,"@gigach.ed.jp","@gigach.ed.jp"]
[null,null,null,"@gigach.ed.jp","@gigach.ed.jp"]
[null,null,null,"@gigach.ed.jp","@gigach.ed.jp"]
[null,null,null,"@gigach.ed.jp","@gigach.ed.jp"]
[null,null,null,"@gigach.ed.jp","@gigach.ed.jp"]
[null,null,null,"@gigach.ed.jp","@gigach.ed.jp"]
[null,null,null,"@gigach.ed.jp","@gigach.ed.jp"]
[null,null,null,"@gigach.ed.jp","@gigach.ed.jp"]
[null,null,null,"@gigach.ed.jp","@gigach.ed.jp"]
[null,null,null,"@gigach.ed.jp","@gigach.ed.jp"]
[null,null,null,"@gigach.ed.jp","@gigach.ed.jp"]
[null,null,null,"@gigach.ed.jp","@gigach.ed.jp"]
[null,null,null,"@gigach.ed.jp","@gigach.ed.jp"]
[null,null,null,"@gigach.ed.jp","@gigach.ed.jp"]
[null,null,null,"@gigach.ed.jp","@gigach.ed.jp"]
[null,null,null,"@gigach.ed.jp","@gigach.ed.jp"]
[null,null,null,"@gigach.ed.jp","@gigach.ed.jp"]
[null,null,null,"@gigach.ed.jp","@gigach.ed.jp"]
[null,null,null,"@gigach.ed.jp",{"$f":"C31 & D31","v":"@gigach.ed.jp"}]
[null,null,null,"@gigach.ed.jp","@gigach.ed.jp"]
[null,null,null,"@gigach.ed.jp","@gigach.ed.jp"]
[null,null,null,"@gigach.ed.jp","@gigach.ed.jp"]
[null,null,null,"@gigach.ed.jp","@gigach.ed.jp"]
[null,null,null,"@gigach.ed.jp","@gigach.ed.jp"]
[null,null,null,"@gigach.ed.jp","@gigach.ed.jp"]
[null,null,null,"@gigach.ed.jp","@gigach.ed.jp"]
[null,null,null,"@gigach.ed.jp","@gigach.ed.jp"]
[null,null,null,null,""]
[null,null,null,null,""]
[null,null,null,null,""]